Workbook

Sheet Лист1
A2: Разработано Директор ООО "АБК-Пэймент" | K2: Согласовано | M2: Руководитель общеобразовательного
A3: _______________Рахматуллин Р.Р. | M3: учреждения
B5: ООО "АБК-Пэймент"
A6: Примерное двенадцатидневное цикличное дополнительное меню группы продленного дня
A7: для учащихся образовательных учреждений Республики Татарстан
A8: 1 неделя
A9: № Сборник рецептур | B9: Наименование продуктов | C9: Стоимость,руб | D9: Выход,г | E9: Белки,г | F9: Жиры,г | G9: Угл-ды,г | H9: Энер.ценность (ккал) | I9: В1,мг | J9: С,мг | K9: А,мкг | L9: Е,мг | M9: Са | N9: Р | O9: Mg | P9: Fe
B10: ПОНЕДЕЛЬНИК
B11: Меню дополнительного питания
A12: № 84/2017 | B12: Борщ из свежей капусты (на костном бульоне), со сметаной | D12: 250/7 | E12: 1.98 | F12: 5.97 | G12: 11.18 | H12: 115.09 | I12: 0.05 | J12: 10.70 | K12: 7.00 | L12: 2.42 | M12: 55.89 | N12: 58.87 | O12: 26.76 | P12: 1.24
A13: ТТК | B13: Жаркое с мясом индейки | D13: 40/160 | E13: 12.17 | F13: 28.17 | G13: 21.04 | H13: 387.47 | I13: 0.12 | J13: 9.28 | K13: 23.28 | L13: 4.02 | M13: 52.27 | N13: 182.29 | O13: 43.50 | P13: 4.20
A14: № 342/2017 | B14: Компот из свежих яблок | D14: 200 | E14: 0.16 | F14: 0.16 | G14: 27.88 | H14: 114.6 | I14: 0.012 | J14: 0.9 | K14: 0 | L14: 0.08 | M14: 14.18 | N14: 4.4 | O14: 5.14 | P14: 0.952
A15: табл 6 стр 144 Дели +,2012 | B15: Хлеб ржано-пшеничный/пшеничный | D15: 20/20 | E15: 2.84 | F15: 0.40 | G15: 17.76 | H15: 86.60 | I15: 0.06 | J15: 0.00 | K15: 0.00 | L15: 0.50 | M15: 9.80 | N15: 43.00 | O15: 12.20 | P15: 1.00
B16: Итого: | C16: 65 | D16: =20+20+D14+150+50+3+250+7 -> 700 | E16: =E15+E14+E13+E12 -> 17.15 | F16: =F15+F14+F13+F12 -> 34.70 | G16: 77.86 | H16: 703.76 | I16: 0.24 | J16: 20.88 | K16: 30.28 | L16: 7.02 | M16: 132.13 | N16: 288.56 | O16: 87.59 | P16: 7.39
B17: ВТОРНИК
B18: Меню дополнительного питания
A19: № 103,288/2017 | B19: Суп - лапша с картофелем, с мясом птицы | D19: 250/10 | E19: 5.65 | F19: 6.10 | G19: 11.62 | H19: 132.55 | I19: 0.05 | J19: 0.50 | K19: 13.00 | L19: 2.58 | M19: 29.53 | N19: 42.08 | O19: 11.18 | P19: 1.15
A20: ТТК | B20: Котлета из говядины с кашей геркулесовой молочной,с маслом сливочным | D20: 50/150/3 | E20: 14.32 | F20: 14.19 | G20: 36.09 | H20: 330.27 | I20: 0.17 | J20: 0.72 | K20: 26.23 | L20: 1.18 | M20: 117.72 | N20: 255.85 | O20: 63.37 | P20: 2.51
A21: № 346/2017 | B21: Компот из сухофруктов | D21: 200 | E21: 0.662 | F21: 0.09 | G21: 32.014 | H21: 132.8 | I21: 0.016 | J21: 0.726 | K21: 0 | L21: 0.508 | M21: 32.48 | N21: 23.44 | O21: 17.46 | P21: 0.698
A22: табл 6 стр 144 Дели +,2012 | B22: Хлеб ржано-пшеничный/пшеничный | D22: 20/20 | E22: 2.84 | F22: 0.40 | G22: 17.76 | H22: 86.60 | I22: 0.06 | J22: 0.00 | K22: 0.00 | L22: 0.50 | M22: 9.80 | N22: 43.00 | O22: 12.20 | P22: 1.00
B23: Итого: | C23: 65 | D23: =20+20+D21+50+150+3+250+10 -> 703 | E23: =SUM(E19:E22) -> 23.46 | F23: =SUM(F19:F22) -> 20.79 | G23: 97.49 | H23: 682.22 | I23: 0.30 | J23: 1.95 | K23: 39.23 | L23: 4.77 | M23: 189.53 | N23: 364.36 | O23: 104.20 | P23: 5.35
B24: СРЕДА
B25: Меню дополнительного питания
A26: № 88/2017 | B26: Щи из свежей капусты с картофелем (на костном бульоне), со сметаной | D26: 250/10 | E26: 2.03 | F26: 6.45 | G26: 8.26 | H26: 105.95 | I26: 0.06 | J26: 15.82 | K26: 10.00 | L26: 2.38 | M26: 58.05 | N26: 55.10 | O26: 23.03 | P26: 0.85
A27: ТТК | B27: Плов из птицы с перловой крупой и овощами | D27: 50/150 | E27: 16.06 | F27: 9.51 | G27: 30.62 | H27: 272.00 | I27: 0.07 | J27: 1.74 | K27: 29.10 | L27: 1.03 | M27: 49.83 | N27: 235.60 | O27: 34.82 | P27: 1.88
A28: № 388/2017 | B28: Напиток из шиповника | D28: 200 | E28: 0.678 | F28: 0.278 | G28: 20.76 | H28: 88.2 | I28: 0.012 | J28: 100 | K28: 0 | L28: 0.76 | M28: 21.34 | N28: 3.44 | O28: 3.44 | P28: 0.634
A29: табл 6 стр 144 Дели +,2012 | B29: Хлеб ржано-пшеничный/пшеничный | D29: 20/20 | E29: 2.84 | F29: 0.40 | G29: 17.76 | H29: 86.60 | I29: 0.06 | J29: 0.00 | K29: 0.00 | L29: 0.50 | M29: 9.80 | N29: 43.00 | O29: 12.20 | P29: 1.00
B30: Итого: | C30: 65 | D30: 700 | E30: =E29+E28+E27+E26 -> 21.60 | F30: =F29+F28+F27+F26 -> 16.63 | G30: 77.40 | H30: 552.75 | I30: 0.19 | J30: 117.56 | K30: 39.10 | L30: 4.67 | M30: 139.02 | N30: 337.14 | O30: 73.48 | P30: 4.36
B31: ЧЕТВЕРГ
B32: Меню дополнительного питания
A33: № 96/2017 | B33: Рассольник ленинградский, с мясными фрикадельками, со сметаной | D33: 250/10/7 | E33: 4.19 | F33: 7.31 | G33: 12.31 | H33: 138.20 | I33: 0.10 | J33: 8.45 | K33: 9.00 | L33: 2.44 | M33: 37.46 | N33: 81.76 | O33: 28.03 | P33: 1.10
A34: ТТК ,АП №657 от 28.04.2020 | B34: Каша пшенная молочная с маслом сливочным | D34: 200/3 | E34: 7.45 | F34: 6.64 | G34: 36.96 | H34: 238.76 | I34: 0.19 | J34: 1.17 | K34: 29.98 | L34: 0.13 | M34: 136.42 | N34: 182.27 | O34: 47.60 | P34: 1.22
A35: № 388/2017 | B35: Напиток из шиповника | D35: 200 | E35: 0.68 | F35: 0.28 | G35: 20.76 | H35: 88.20 | I35: 0.01 | J35: 100.00 | K35: 0.00 | L35: 0.76 | M35: 21.34 | N35: 3.44 | O35: 3.44 | P35: 0.63
A36: табл 6 стр 144 Дели +,2012 | B36: Хлеб ржано-пшеничный | D36: 30 | E36: 1.98 | F36: 0.36 | G36: 11.88 | H36: 59.40 | I36: 0.05 | J36: 0.00 | K36: 0.00 | L36: 0.42 | M36: 8.70 | N36: 45.00 | O36: 14.10 | P36: 1.17
B37: Итого: | C37: 65 | D37: =D36+D35+203+250+10+7 -> 700 | E37: =E36+E35+E34+E33 -> 14.31 | F37: =F36+F35+F34+F33 -> 14.59 | G37: 81.91 | H37: 524.56 | I37: 0.35 | J37: 109.62 | K37: 38.98 | L37: 3.75 | M37: 203.92 | N37: 312.47 | O37: 93.17 | P37: 4.11
B39: ПЯТНИЦА
B40: Меню дополнительного питания
A41: ТТК | B41: Суп с гречневой крупой (на костном бульоне) | D41: 250 | E41: 1.97 | F41: 2.71 | G41: 12.11 | H41: 85.75 | I41: 0.09 | J41: 8.25 | K41: 0.00 | L41: 1.23 | M41: 26.70 | N41: 55.98 | O41: 22.78 | P41: 0.88
A42: № 420/2017 | B42: Котлета из мяса птицы с гороховым пюре с маслом сливочным | D42: 50/150/3 | E42: 22.28 | F42: 8.33 | G42: 43.03 | H42: 335.26 | I42: 0.60 | J42: 0.45 | K42: 18.88 | L42: 34.63 | M42: 122.32 | N42: 250.22 | O42: 72.80 | P42: 6.49
A43: № 342/2017 | B43: Компот из свежих яблок | D43: 200 | E43: 0.16 | F43: 0.16 | G43: 27.88 | H43: 114.6 | I43: 0.012 | J43: 0.9 | K43: 0 | L43: 0.08 | M43: 14.18 | N43: 4.4 | O43: 5.14 | P43: 0.952
A44: табл 6 стр 134 , 2012 Дели + | B44: Хлеб пшеничный | D44: 20 | E44: 1.52 | F44: 0.16 | G44: 9.84 | H44: 47.00 | I44: 0.02 | J44: 0.00 | K44: 0.00 | L44: 0.22 | M44: 4.00 | N44: 13.00 | O44: 2.80 | P44: 0.22
A45: табл 6 стр 144 Дели +,2012 | B45: Хлеб ржано-пшеничный | D45: 30 | E45: 1.98 | F45: 0.36 | G45: 11.88 | H45: 59.40 | I45: 0.05 | J45: 0.00 | K45: 0.00 | L45: 0.42 | M45: 8.70 | N45: 45.00 | O45: 14.10 | P45: 1.17
B46: Итого: | C46: 65 | D46: 703 | E46: =E41+E42+E43+E44+E45 -> 27.91 | F46: =F41+F42+F43+F44+F45 -> 11.72 | G46: 104.74 | H46: 642.01 | I46: 0.77 | J46: 9.60 | K46: 18.88 | L46: 36.58 | M46: 175.90 | N46: 368.60 | O46: 117.61 | P46: 9.70
B47: СУББОТА
B48: Меню дополнительного питания
A49: № 102/2017 | B49: Суп картофельный с горохом, с мясом птицы | D49: 250/10 | E49: 7.83 | F49: 7.13 | G49: 16.57 | H49: 174.45 | I49: 0.23 | J49: 6.06 | K49: 5.82 | L49: 2.52 | M49: 48.04 | N49: 104.50 | O49: 37.60 | P49: 2.24
A50: № 210/2017 | B50: Омлет натуральный | D50: 200 | E50: 18.59 | F50: 33.10 | G50: 3.52 | H50: 386.21 | I50: 0.14 | J50: 0.34 | K50: 432.76 | L50: 1.00 | M50: 137.45 | N50: 301.03 | O50: 21.52 | P50: 3.52
A51: ттк | B51: Кисель | D51: 200 | E51: 0.6 | F51: 0.1 | G51: 30.2 | H51: 123.60 | I51: 0.002 | J51: 1.100 | M51: 15.7 | N51: 16.3 | O51: 3.36 | P51: 0.37
A52: табл 6 стр 144 Дели +,2012 | B52: Хлеб ржано-пшеничный/пшеничный | D52: 20/20 | E52: 2.84 | F52: 0.40 | G52: 17.76 | H52: 86.60 | I52: 0.06 | J52: 0.00 | K52: 0.00 | L52: 0.50 | M52: 9.80 | N52: 43.00 | O52: 12.20 | P52: 1.00
B53: Итого: | C53: 65 | D53: 700 | E53: =E52+E51+E50+E49 -> 29.86 | F53: =F52+F51+F50+F49 -> 40.73 | G53: 68.05 | H53: 770.86 | I53: 0.43 | J53: 7.51 | K53: 438.58 | L53: 4.02 | M53: 210.98 | N53: 464.83 | O53: 74.68 | P53: 7.13
B54: Всего за 6 дней: | D54: =D16+D23+D30+D37+D46+D53 -> 4206 | E54: =E16+E23+E30+E37+E46+E53 -> 134.29 | F54: 139.16 | G54: 507.44 | H54: 3876.16 | I54: 2.28 | J54: 267.11 | K54: 605.04 | L54: 60.80 | M54: 1051.48 | N54: 2135.97 | O54: 550.73 | P54: 38.04
A57: 2 неделя
A58: № Сб.рец | B58: Наименование продуктов | C58: Стоимость,руб | D58: Выход,г | E58: Белки,г | F58: Жиры,г | G58: Угл-ды,г | H58: Энер.ценность (ккал) | I58: В1,мг | J58: С,мг | K58: А,мкг | L58: Е,мг | M58: Са | N58: Р | O58: Mg | P58: Fe
B59: Понедельник
B60: Меню дополнительного питания
A61: № 82,109/2017 | B61: Борщ из свежей капусты (на костном бульоне), со сметаной | D61: 250/7 | E61: 1.98 | F61: 5.97 | G61: 11.18 | H61: 115.09 | I61: 0.05 | J61: 10.70 | K61: 7.00 | L61: 2.42 | M61: 55.89 | N61: 58.87 | O61: 26.76 | P61: 1.24
A62: ТТК | B62: Котлета из мяса птицы с макаронными изделиями отварными, с маслом сливочным | D62: 50/150/3 | E62: 14.36 | F62: 7.59 | G62: 40.03 | H62: 286.06 | I62: 0.16 | J62: 0.45 | K62: 18.88 | L62: 34.96 | M62: 40.60 | N62: 76.57 | O62: 19.72 | P62: 2.66
A63: № 343/2017 | B63: Компот из сухофруктов | D63: 200 | E63: 0.66 | F63: 0.09 | G63: 32.01 | H63: 132.80 | I63: 0.02 | J63: 0.73 | K63: 0.00 | L63: 0.51 | M63: 32.48 | N63: 23.44 | O63: 17.46 | P63: 0.70
A64: табл 6 стр 144 Дели +,2012 | B64: Хлеб ржано-пшеничный/пшеничный | D64: 20/20 | E64: 2.84 | F64: 0.40 | G64: 17.76 | H64: 86.60 | I64: 0.06 | J64: 0.00 | K64: 0.00 | L64: 0.50 | M64: 9.80 | N64: 43.00 | O64: 12.20 | P64: 1.00
B65: Итого: | C65: 65 | D65: =40+D63+150+50+3+250+7 -> 700 | E65: =E64+E63+E62+E61 -> 19.85 | F65: =F64+F63+F62+F61 -> 14.05 | G65: 100.99 | H65: 620.55 | I65: 0.28 | J65: 11.88 | K65: 25.88 | L65: 38.38 | M65: 138.77 | N65: 201.88 | O65: 76.13 | P65: 5.59
B66: ВТОРНИК
B67: Меню дополнительного питания
A68: № 97/2017 | B68: Суп картофельный с мясом индейки | D68: 250/10 | E68: 4.88 | F68: 4.94 | G68: 16.90 | H68: 143.40 | I68: 0.15 | J68: 12.31 | K68: 3.26 | L68: 1.34 | M68: 35.53 | N68: 96.69 | O68: 33.66 | P68: 1.66
A69: ТТК | B69: Сосиски отварные с кашей геркулесовой молочной с маслом сливочным | D69: 50/150/3 | E69: 12.25 | F69: 18.73 | G69: 30.24 | H69: 339.80 | I69: 0.25 | J69: 0.72 | K69: 23.10 | L69: 0.70 | M69: 135.21 | N69: 276.80 | O69: 64.04 | P69: 2.45
A70: № 342/2017 | B70: Компот из свежих яблок | D70: 200 | E70: 0.16 | F70: 0.16 | G70: 27.88 | H70: 114.6 | I70: 0.012 | J70: 0.9 | K70: 0 | L70: 0.08 | M70: 14.18 | N70: 4.4 | O70: 5.14 | P70: 0.952
A71: табл 6 стр 144 Дели +,2012 | B71: Хлеб ржано-пшеничный/пшеничный | D71: 20/20 | E71: 2.84 | F71: 0.40 | G71: 17.76 | H71: 86.60 | I71: 0.06 | J71: 0.00 | K71: 0.00 | L71: 0.50 | M71: 9.80 | N71: 43.00 | O71: 12.20 | P71: 1.00
B72: Итого: | C72: 65 | D72: 703 | E72: =E71+E70+E69+E68 -> 20.14 | F72: =F71+F70+F69+F68 -> 24.23 | G72: 92.78 | H72: 684.40 | I72: 0.46 | J72: 13.93 | K72: 26.36 | L72: 2.62 | M72: 194.72 | N72: 420.88 | O72: 115.04 | P72: 6.06
B73: СРЕДА
B74: Меню дополнительного питания
A75: № 119,105/2017 | B75: Суп гороховый на костном бульоне, с гренками | D75: 250/10 | E75: 8.56 | F75: 48.10 | G75: 20.86 | H75: 575.75 | I75: 0.31 | J75: 1.00 | K75: 0.00 | L75: 22.36 | M75: 55.03 | N75: 101.93 | O75: 38.43 | P75: 2.79
A76: ТТК | B76: Котлета из мяса птицы с кашей пшенной молочной, с маслом сливочным | D76: 150/50/3 | E76: 16.13 | F76: 11.39 | G76: 45.03 | H76: 348.76 | I76: 0.29 | J76: 1.62 | K76: 36.88 | L76: 34.28 | M76: 165.11 | N76: 220.77 | O76: 58.70 | P76: 3.02
A77: № 388/2017 | B77: Напиток из шиповника | D77: 200 | E77: 0.68 | F77: 0.28 | G77: 20.76 | H77: 88.20 | I77: 0.01 | J77: 100.00 | K77: 0.00 | L77: 0.76 | M77: 21.34 | N77: 3.44 | O77: 3.44 | P77: 0.63
A78: табл 6 стр 144 Дели +,2012 | B78: Хлеб ржано-пшеничный/пшеничный | D78: 20/20 | E78: 2.84 | F78: 0.40 | G78: 17.76 | H78: 86.60 | I78: 0.06 | J78: 0.00 | K78: 0.00 | L78: 0.50 | M78: 9.80 | N78: 43.00 | O78: 12.20 | P78: 1.00
B79: Итого: | C79: 65 | D79: =40+D77+150+50+3+250+10 -> 703 | E79: =E78+E77+E76+E75 -> 28.21 | F79: =F78+F77+F76+F75 -> 60.17 | G79: 104.41 | H79: 1099.31 | I79: 0.66 | J79: 102.62 | K79: 36.88 | L79: 57.90 | M79: 251.27 | N79: 369.13 | O79: 112.77 | P79: 7.43
B80: ЧЕТВЕРГ
B81: Меню дополнительного питания
A82: ТТК | B82: Солянка по-домашнему со сметаной | D82: 250/10 | E82: 8.29 | F82: 10.65 | G82: 7.55 | H82: 184.83 | I82: 0.06 | J82: 0.84 | K82: 15.88 | L82: 1.61 | M82: 32.53 | N82: 62.65 | O82: 17.65 | P82: 0.60
A83: 174/ 2017 | B83: Овощное рагу | D83: 200 | E83: 3.37 | F83: 20.93 | G83: 16.38 | H83: 270.48 | I83: 0.11 | J83: 23.83 | K83: 87.62 | L83: 3.83 | M83: 70.78 | N83: 85.71 | O83: 30.97 | P83: 1.14
A84: № 343/2017 | B84: Компот из сухофруктов | D84: 200 | E84: 0.66 | F84: 0.09 | G84: 32.01 | H84: 132.80 | I84: 0.02 | J84: 0.73 | K84: 0.00 | L84: 0.51 | M84: 32.48 | N84: 23.44 | O84: 17.46 | P84: 0.70
A85: табл 6 стр 144 Дели +,2012 | B85: Хлеб ржано-пшеничный/пшеничный | D85: 20/20 | E85: 2.84 | F85: 0.40 | G85: 17.76 | H85: 86.60 | I85: 0.06 | J85: 0.00 | K85: 0.00 | L85: 0.50 | M85: 9.80 | N85: 43.00 | O85: 12.20 | P85: 1.00
B86: Итого: | C86: 65 | D86: 700 | E86: =SUM(E82:E85) -> 15.16 | F86: =SUM(F82:F85) -> 32.07 | G86: 73.70 | H86: 674.71 | I86: 0.24 | J86: 25.39 | K86: 103.49 | L86: 6.44 | M86: 145.59 | N86: 214.80 | O86: 78.28 | P86: 3.44
B87: ПЯТНИЦА
B88: Меню дополнительного питания
A89: № 96/2017 | B89: Рассольник ленинградский, с куриными фрикадельками, со сметаной | D89: 250/10/7 | E89: 3.56 | F89: 7.46 | G89: 13.03 | H89: 139.19 | I89: 0.10 | J89: 8.51 | K89: 10.98 | L89: 2.39 | M89: 39.91 | N89: 71.41 | O89: 26.25 | P89: 1.05
A90: № 210/2017 | B90: Омлет натуральный | D90: 200 | E90: 18.59 | F90: 33.10 | G90: 3.52 | H90: 386.21 | I90: 0.14 | J90: 0.34 | K90: 432.76 | L90: 1.00 | M90: 137.45 | N90: 301.03 | O90: 21.52 | P90: 3.52
A91: № 342/2017 | B91: Компот из свежих яблок | D91: 200 | E91: 0.16 | F91: 0.16 | G91: 27.88 | H91: 114.6 | I91: 0.012 | J91: 0.9 | K91: 0 | L91: 0.08 | M91: 14.18 | N91: 4.4 | O91: 5.14 | P91: 0.952
A92: табл 6 стр 144 Дели +,2012 | B92: Хлеб ржано-пшеничный/пшеничный | D92: 20/20 | E92: 2.84 | F92: 0.40 | G92: 17.76 | H92: 86.60 | I92: 0.06 | J92: 0.00 | K92: 0.00 | L92: 0.50 | M92: 9.80 | N92: 43.00 | O92: 12.20 | P92: 1.00
B93: Итого: | C93: 65 | D93: =20+20+D91+D90+250+10+7 -> 707 | E93: =E92+E91+E90+E89 -> 25.15 | F93: =F92+F91+F90+F89 -> 41.13 | G93: 62.19 | H93: 726.60 | I93: 0.30 | J93: 9.75 | K93: 443.74 | L93: 3.97 | M93: 201.34 | N93: 419.84 | O93: 65.10 | P93: 6.52
B94: СУББОТА
B95: Меню дополнительного питания
A96: № 103,288/2017 | B96: Суп - лапша с картофелем, с мясом птицы | D96: 250/10 | E96: 5.65 | F96: 6.10 | G96: 11.62 | H96: 132.55 | I96: 0.05 | J96: 0.50 | K96: 13.00 | L96: 2.58 | M96: 29.53 | N96: 42.08 | O96: 11.18 | P96: 1.15
A97: ТТК | B97: Котлета из мяса птицы с кашей пшеничной молочной, с маслом сливочным | D97: 50/150/3 | E97: 15.12 | F97: 9.78 | G97: 41.25 | H97: 314.26 | I97: 0.21 | J97: 1.17 | K97: 29.98 | L97: 34.68 | M97: 137.69 | N97: 203.12 | O97: 44.35 | P97: 3.55
A98: 376/ 2017 | B98: Чай с сахаром | D98: 200 | E98: 0.07 | F98: 0.02 | G98: 10.01 | H98: 40.00 | I98: 0 | J98: 0.030 | K98: 0 | L98: 0 | M98: 10.95 | N98: 2.8 | O98: 1.4 | P98: 0.265
A99: табл 6 стр 144 Дели +,2012 | B99: Хлеб ржано-пшеничный/пшеничный | D99: 20/20 | E99: 2.84 | F99: 0.40 | G99: 17.76 | H99: 86.60 | I99: 0.06 | J99: 0.00 | K99: 0.00 | L99: 0.50 | M99: 9.80 | N99: 43.00 | O99: 12.20 | P99: 1.00
B100: Итого: | C100: 65 | D100: 703 | E100: =E96+E97+E98+E99 -> 23.68 | F100: =F96+F97+F98+F99 -> 16.30 | G100: 80.64 | H100: 573.41 | I100: 0.31 | J100: 1.70 | K100: 42.98 | L100: 37.76 | M100: 187.96 | N100: 291.00 | O100: 69.12 | P100: 5.96
B101: Всего: | D101: =D65+D72+D93+D86+D30+D100 -> 4213 | E101: =E65+E72+E79+E86+E93+E100 -> 132.19 | F101: =F65+F72+F79+F86+F93+F100 -> 187.95 | G101: =G65+G72+G79+G86+G93+G100 -> 514.71 | H101: =H65+H72+H79+H86+H93+H100 -> 4378.97 | I101: =I65+I72+I79+I86+I93+I100 -> 2.27 | J101: =J65+J72+J79+J86+J93+J100 -> 165.27 | K101: =K65+K72+K79+K86+K93+K100 -> 679.32 | L101: =L65+L72+L79+L86+L93+L100 -> 147.09 | M101: =M65+M72+M79+M86+M93+M100 -> 1119.64 | N101: =N65+N72+N79+N86+N93+N100 -> 1917.53 | O101: =O65+O72+O79+O86+O93+O100 -> 516.44 | P101: =P65+P72+P79+P86+P93+P100 -> 35.01
B102: Всего за 12 дней: | D102: =D54+D101 -> 8419 | E102: =E54+E101 -> 266.48 | F102: =F54+F101 -> 327.11 | G102: =G54+G101 -> 1022.15 | H102: =H54+H101 -> 8255.13 | I102: =I54+I101 -> 4.55 | J102: =J54+J101 -> 432.39 | K102: =K54+K101 -> 1284.36 | L102: =L54+L101 -> 207.88 | M102: =M54+M101 -> 2171.12 | N102: =N54+N101 -> 4053.50 | O102: =O54+O101 -> 1067.18 | P102: =P54+P101 -> 73.06
B103: В среднем на 1 учащегося в день | C103: 65 | D103: =D102/12 -> 702 | E103: =E102/12 -> 22.21 | F103: =F102/12 -> 27.26 | G103: 85.18 | H103: 687.93 | I103: 0.38 | J103: 36.03 | K103: 107.03 | L103: 17.32 | M103: 180.93 | N103: 337.79 | O103: 88.93 | P103: 6.09
